fUSD/lending_fUSD_20250125
["ID","MTS","AMOUNT","RATE_DAILY","PERIOD"]
[350385440,1737820251767,-693.64,0.00018081,2]
[350385441,1737820251777,-500.0,0.00018081,2]
[350385442,1737820251789,-500.0,0.00018082,2]
[350385443,1737820251798,-500.0,0.00018082,2]
[350385444,1737820251808,-500.0,0.00018082,2]
[350385445,1737820251819,-694.18,0.00018082,2]
[350385446,1737820251829,-500.0,0.00018082,2]
[350385447,1737820251839,-500.0,0.00018082,2]
[350385448,1737820251849,-500.0,0.00018082,2]
[350385449,1737820251859,-553.09,0.00018082,2]
[350385450,1737820251869,-500.0,0.00018082,2]
[350385451,1737820251878,-400.0,0.00018082,2]
[350385452,1737820251888,-200.0,0.00018082,2]
[350385453,1737820251897,-834.36335704,0.00018107,2]
[350385454,1737820251906,-500.0,0.00018164,2]
[350385455,1737820251916,-500.0,0.00018164,2]
[350385456,1737820251925,-673.97,0.00018188,2]
[350385457,1737820251934,-500.0,0.00018188,2]
[350385458,1737820251943,-500.0,0.00018217,2]
[350385459,1737820251954,-500.0,0.00018217,2]
[350385460,1737820251963,-500.0,0.00018217,2]
[350385461,1737820251973,-16705.7,0.00018218,2]
[350385462,1737820251982,-693.64,0.00018218,2]
[350385463,1737820251992,-500.0,0.00018218,2]
[350385464,1737820252002,-500.0,0.00018219,2]
[350385465,1737820252011,-500.0,0.00018219,2]
[350385466,1737820252020,-500.0,0.00018219,2]
[350385467,1737820252030,-694.18,0.00018219,2]
[350385468,1737820252040,-500.0,0.00018219,2]
[350385469,1737820252049,-500.0,0.00018219,2]
[350385470,1737820252059,-500.0,0.00018219,2]
[350385471,1737820252069,-553.09,0.00018219,2]
[350385472,1737820252079,-500.0,0.00018219,2]
[350385473,1737820252088,-834.36335704,0.00018279,2]
[350385474,1737820252098,-672.11972794,0.00018293,2]
[350385475,1737820252109,-8554.50470761,0.00018317,2]
[350385476,1737820252119,-673.97,0.00018325,2]
[350385477,1737820252128,-500.0,0.00018325,2]
[350385478,1737820252138,-500.0,0.00018354,2]
[350385479,1737820252148,-500.0,0.00018354,2]
[350385480,1737820252158,-500.0,0.00018354,2]
[350385481,1737820252168,-16705.7,0.00018355,2]
[350385482,1737820252178,-693.64,0.00018355,2]
[350385483,1737820252187,-500.0,0.00018355,2]
[350385484,1737820252197,-500.0,0.00018356,2]
[350385485,1737820252206,-500.0,0.00018356,2]
[350385486,1737820252220,-496.44277381,0.00018356,2]
[350385487,1737820252230,-694.18,0.00018356,2]
[350385488,1737820252240,-500.0,0.00018356,2]
[350385489,1737820252249,-500.0,0.00018356,2]
[350385490,1737820252258,-500.0,0.00018356,2]
[350385491,1737820252271,-553.09,0.00018356,2]
[350385492,1737820252280,-500.0,0.00018356,2]
[350385493,1737820252290,-834.36335704,0.00018452,2]
[350385494,1737820252302,-673.97,0.00018462,2]
[350385495,1737820252312,-500.0,0.00018462,2]
[350385496,1737820252322,-500.0,0.00018491,2]
[350385497,1737820252338,-263.47,0.00018491,2]
[350385498,1737820252349,-500.0,0.00018491,2]
[350385499,1737820252359,-16705.7,0.00018492,2]
[350385500,1737820252368,-693.64,0.00018492,2]
[350385501,1737820252377,-500.0,0.00018492,2]
[350385502,1737820252387,-500.0,0.00018493,2]
[350385503,1737820252396,-500.0,0.00018493,2]
[350385504,1737820252406,-694.18,0.00018493,2]
[350385505,1737820252416,-500.0,0.00018493,2]
[350385506,1737820252425,-500.0,0.00018493,2]
[350385507,1737820252434,-500.0,0.00018493,2]
[350385508,1737820252443,-553.09,0.00018493,2]
[350385509,1737820252453,-380.36685,0.00018493,2]
[350385510,1737820252463,-673.97,0.00018599,2]
[350385511,1737820252472,-500.0,0.00018599,2]
[350385512,1737820252482,-1605.0,0.000186,2]
[350385513,1737820252492,-834.36335704,0.00018624,2]
[350385514,1737820252502,-500.0,0.00018628,2]
[350385515,1737820252511,-736.18,0.00018628,2]
[350385516,1737820252521,-500.0,0.00018628,2]
[350385517,1737820252531,-16705.7,0.00018629,2]
[350385518,1737820252540,-693.64,0.00018629,2]
[350385519,1737820252550,-500.0,0.00018629,2]
[350385520,1737820252559,-613.22960349,0.0001863,2]
[350385521,1737820252568,-500.0,0.0001863,2]
[350385522,1737820252578,-694.18,0.0001863,2]
[350385523,1737820252587,-500.0,0.0001863,2]
[350385524,1737820252597,-500.0,0.0001863,2]
[350385525,1737820252607,-400.43,0.0001863,2]
[350385526,1737820252616,-553.09,0.0001863,2]
[350385527,1737820252625,-8554.50470761,0.00018713,2]
[350385528,1737820252635,-673.97,0.00018736,2]
[350385529,1737820252644,-500.0,0.00018736,2]
[350385530,1737820252653,-400.0,0.00018751,2]
[350385531,1737820252663,-299.65,0.00018765,2]
[350385532,1737820252673,-500.0,0.00018765,2]
[350385533,1737820252682,-16705.7,0.00018766,2]
[350385534,1737820252692,-693.64,0.00018766,2]
[350385535,1737820252701,-500.0,0.00018766,2]
[350385536,1737820252711,-500.0,0.00018767,2]
[350385537,1737820252720,-694.18,0.00018767,2]
[350385538,1737820252730,-500.0,0.00018767,2]
[350385539,1737820252739,-500.0,0.00018767,2]
[350385540,1737820252748,-553.09,0.00018767,2]
[350385541,1737820252758,-834.36335704,0.00018797,2]
[350385542,1737820252767,-1100.0,0.000188,6]
[350385543,1737820252777,-1000.0,0.0001882,2]
[350385544,1737820252786,-673.97,0.00018873,2]
[350385545,1737820252795,-500.0,0.00018873,2]
[350385546,1737820252804,-1500.0,0.000189,6]
[350385547,1737820252817,-524.19,0.00018902,2]
[350385548,1737820252832,-2319.88241612,0.00018903,2]
[350385549,1737820252843,-16705.7,0.00018903,2]
[350385550,1737820252852,-693.64,0.00018903,2]
[350385551,1737820252861,-500.0,0.00018903,2]
[350385552,1737820252871,-618.9,0.00018904,2]
[350385553,1737820252881,-694.18,0.00018904,2]
[350385554,1737820252891,-453.78,0.00018904,2]
[350385555,1737820252901,-256.76,0.00018904,2]
[350385556,1737820252911,-553.09,0.00018904,2]
[350385557,1737820252920,-409.71,0.00018948,2]
[350385558,1737820252929,-437.86,0.00018948,2]
[350385559,1737820252939,-834.36335704,0.00018969,2]
[350385560,1737820252948,-249.0,0.00019,2]
[350385561,1737820252958,-650.0,0.00019,2]
[350385562,1737820252969,-673.97,0.0001901,2]
[350385563,1737820252979,-500.0,0.0001901,2]
[350385564,1737820252989,-672.11972794,0.00019014,2]
[350385565,1737820252998,-1122929.5938348,0.00019039,2]
[350385566,1737820253158,-2525.00320572,0.0001661,2]
[350385567,1737820253169,-329.71948032,0.0001661,2]
[350385568,1737820253179,-9507.95890852,0.00019039,2]
[350385569,1737820253233,-755.60676301,0.00019039,2]
[350385570,1737820253244,-1497.09864479,0.00019039,2]
[350385571,1737820253256,-253.37492,0.00019039,2]
[350385572,1737820253268,-6273.95119,0.00019039,2]
[350385573,1737820253279,-1572.3,0.00019039,2]
[350385574,1737820253290,-6512.01029125,0.00019039,2]
[350385575,1737820253307,-263.258183,0.00019039,2]
[350385576,1737820253318,-721.95064997,0.00019039,2]
[350385577,1737820253329,-1268.277768,0.00019039,2]
[350385578,1737820253344,-353.526063,0.00019039,2]
[350385579,1737820253355,-837.93037042,0.00019039,2]
[350385582,1737820390462,-1177.16828903,0.00016373,2]
[350385583,1737820390485,-500.0,0.00016438,2]
[350385584,1737820390508,-950.91,0.00016438,2]
[350385585,1737820390529,-1177.16828902,0.00016444,2]
[350385586,1737820390549,-3434.75342195,0.00016473,2]
[350385591,1737820586069,682.25,0.00022,30]
[350385602,1737820950840,150.0,0.00021258,120]
[350385603,1737821070817,150.0,0.00020892,120]
[350385640,1737821431730,-157.0,0.00010137,2]
[350385641,1737821431740,-150.32,0.00010137,2]
[350385642,1737821431750,-5592.65984497,0.00013781,7]
[350385643,1737821431760,-1165.37,0.00014118,2]
[350385644,1737821431769,-550.0,0.00015,2]
[350385645,1737821431779,-184.29,0.00015799,2]
[350385646,1737821431789,-2347.61648257,0.00015799,2]
[350385647,1737821431799,-300.0,0.00015841,2]
[350385648,1737821431809,-158.13,0.00015842,2]
[350385649,1737821431818,-238.23,0.00016016,2]
[350385650,1737821431829,-328.01,0.00016222,2]
[350385651,1737821431838,-500.0,0.00016363,2]
[350385652,1737821431848,-1165.37,0.00016381,2]
[350385653,1737821431858,-250.0,0.00016384,2]
[350385654,1737821431867,-614.27262293,0.00016443,2]
[350385655,1737821431877,-312.1523,0.00016473,2]
[350385656,1737821431886,-1638.5,0.00016473,2]
[350385657,1737821431897,-358.9451,0.00016473,2]
[350385658,1737821431906,-6155.1586,0.00016473,2]
[350385659,1737821431916,-3726.8062,0.00016473,2]
[350385660,1737821431926,-452.78951352,0.00016473,2]
[350385661,1737821431938,-273.82057267,0.00016473,2]
[350385662,1737821431948,-166.06,0.00016507,2]
[350385663,1737821431959,-150.0,0.00016542,2]
[350385664,1737821431968,-500.0,0.00016543,2]
[350385665,1737821431979,-521.57111275,0.00016543,2]
[350385666,1737821431988,-500.0,0.00016543,2]
[350385667,1737821431998,-500.0,0.00016543,2]
[350385668,1737821432007,-500.0,0.00016543,2]
[350385669,1737821432017,-500.0,0.00016543,2]
[350385670,1737821432026,-403.00087246,0.00016543,2]
[350385671,1737821432042,-96.99912754,0.00016543,2]
[350385672,1737821432051,-500.0,0.00016543,2]
[350385673,1737821432060,-500.0,0.00016543,2]
[350385674,1737821432069,-500.0,0.00016543,2]
[350385675,1737821432079,-500.0,0.00016543,2]
[350385676,1737821432088,-500.0,0.00016543,2]
[350385686,1737821432266,-500.0,0.00016543,2]
[350385688,1737821432276,-500.0,0.00016543,2]
[350385690,1737821432285,-73.45087246,0.00016543,2]
[350385693,1737821432297,-426.54912754,0.00016543,2]
[350385695,1737821432306,-500.0,0.00016543,2]
[350385697,1737821432315,-500.0,0.00016543,2]
[350385699,1737821432324,-500.0,0.00016543,2]
[350385702,1737821432333,-500.0,0.00016543,2]
[350385704,1737821432342,-500.0,0.00016543,2]
[350385706,1737821432351,-500.0,0.00016543,2]
[350385709,1737821432361,-500.0,0.00016543,2]
[350385712,1737821432370,-500.0,0.00016543,2]
[350385714,1737821432380,-500.0,0.00016543,2]
[350385716,1737821432389,-500.0,0.00016543,2]
[350385718,1737821432398,-500.0,0.00016543,2]
[350385720,1737821432407,-500.0,0.00016543,2]
[350385722,1737821432416,-500.0,0.00016543,2]
[350385724,1737821432425,-500.0,0.00016543,2]
[350385726,1737821432434,-500.0,0.00016543,2]
[350385728,1737821432443,-500.0,0.00016543,2]
[350385730,1737821432453,-500.0,0.00016543,2]
[350385732,1737821432462,-500.0,0.00016543,2]
[350385734,1737821432470,-500.0,0.00016543,2]
[350385735,1737821432480,-500.0,0.00016543,2]
[350385737,1737821432489,-500.0,0.00016543,2]
[350385739,1737821432498,-500.0,0.00016543,2]
[350385741,1737821432507,-500.0,0.00016543,2]
[350385743,1737821432517,-500.0,0.00016543,2]
[350385745,1737821432526,-500.0,0.00016543,2]
[350385747,1737821432537,-500.0,0.00016543,2]
[350385749,1737821432546,-250.0,0.00016568,2]
[350385751,1737821432555,-500.0,0.00016573,2]
[350385752,1737821432564,-500.0,0.00016573,2]
[350385753,1737821432573,-500.0,0.00016573,2]
[350385754,1737821432582,-500.0,0.00016573,2]
[350385755,1737821432591,-500.0,0.00016573,2]
[350385756,1737821432603,-500.0,0.00016573,2]
[350385757,1737821432612,-518.36542192,0.00016573,2]
[350385758,1737821432621,-500.0,0.00016573,2]
[350385759,1737821432631,-500.0,0.00016573,2]
[350385760,1737821432641,-500.0,0.00016573,2]
[350385761,1737821432650,-500.0,0.00016573,2]
[350385762,1737821432659,-401.12204773,0.00016573,2]
[350385763,1737821432668,-500.0,0.00016573,2]
[350385764,1737821432678,-500.0,0.00016573,2]
[350385765,1737821432687,-500.0,0.00016573,2]
[350385766,1737821432696,-500.0,0.00016573,2]
[350385767,1737821432705,-500.0,0.00016573,2]
[350385768,1737821432715,-505.72262733,0.00016573,2]
[350385769,1737821432724,-500.0,0.00016573,2]
[350385770,1737821432734,-509.86123177,0.00016573,2]
[350385771,1737821432743,-504.25677882,0.00016573,2]
[350385772,1737821432753,-500.0,0.00016573,2]
[350385773,1737821432762,-500.0,0.00016573,2]
[350385774,1737821432771,-500.0,0.00016573,2]
[350385775,1737821432781,-500.0,0.00016573,2]
[350385776,1737821432790,-510.45866329,0.00016573,2]
[350385777,1737821432799,-500.0,0.00016573,2]
[350385778,1737821432808,-500.0,0.00016573,2]
[350385779,1737821432817,-500.0,0.00016573,2]
[350385780,1737821432826,-500.0,0.00016573,2]
[350385781,1737821432835,-500.0,0.00016573,2]
[350385782,1737821432844,-500.0,0.00016573,2]
[350385783,1737821432853,-503.47558965,0.00016573,2]
[350385784,1737821432862,-500.0,0.00016573,2]
[350385785,1737821432871,-300.0,0.00016573,2]
[350385786,1737821432881,-500.0,0.00016573,2]
[350385787,1737821432890,-500.0,0.00016573,2]
[350385788,1737821432900,-332.12060465,0.00016573,2]
[350385789,1737821432909,-500.0,0.00016573,2]
[350385790,1737821432919,-500.0,0.00016573,2]
[350385791,1737821432928,-500.0,0.00016573,2]
[350385792,1737821432937,-500.0,0.00016573,2]
[350385793,1737821432946,-533.0630456,0.00016573,2]
[350385794,1737821432957,-500.0,0.00016573,2]
[350385795,1737821432966,-500.0,0.00016573,2]
[350385796,1737821432975,-500.0,0.00016573,2]
[350385797,1737821432984,-500.0,0.00016573,2]
[350385798,1737821432994,-500.0,0.00016573,2]
[350385799,1737821433003,-500.0,0.00016573,2]
[350385800,1737821433013,-500.0,0.00016573,2]
[350385801,1737821433022,-500.0,0.00016573,2]
[350385802,1737821433032,-500.0,0.00016573,2]
[350385803,1737821433041,-500.0,0.00016573,2]
[350385804,1737821433051,-564.92823637,0.00016573,2]
[350385805,1737821433061,-500.0,0.00016573,2]
[350385806,1737821433071,-500.0,0.00016573,2]
[350385807,1737821433081,-500.0,0.00016573,2]
[350385808,1737821433091,-566.54670418,0.00016573,2]
[350385809,1737821433101,-500.0,0.00016573,2]
[350385810,1737821433111,-500.0,0.00016573,2]
[350385811,1737821433120,-500.0,0.00016573,2]
[350385812,1737821433130,-506.16123979,0.00016573,2]
[350385813,1737821433140,-500.0,0.00016573,2]
[350385814,1737821433150,-605.96,0.00016573,2]
[350385815,1737821433160,-500.0,0.00016573,2]
[350385816,1737821433170,-500.0,0.00016573,2]
[350385817,1737821433179,-500.0,0.00016573,2]
[350385818,1737821433189,-361.08921103,0.00016573,2]
[350385819,1737821433199,-500.0,0.00016573,2]
[350385820,1737821433209,-500.0,0.00016573,2]
[350385821,1737821433218,-500.0,0.00016573,2]
[350385822,1737821433229,-500.0,0.00016573,2]
[350385823,1737821433239,-500.0,0.00016573,2]
[350385824,1737821433249,-500.0,0.00016573,2]
[350385825,1737821433258,-500.0,0.00016573,2]
[350385826,1737821433268,-500.0,0.00016573,2]
[350385827,1737821433278,-500.0,0.00016573,2]
[350385828,1737821433288,-608.15575848,0.00016574,2]
[350385829,1737821433298,-500.0,0.00016574,2]
[350385830,1737821433308,-504.08219297,0.00016574,2]
[350385831,1737821433318,-500.0,0.00016644,2]
[350385832,1737821433328,-500.0,0.0001665,2]
[350385833,1737821433337,-500.0,0.0001668,2]
[350385834,1737821433347,-500.0,0.0001668,2]
[350385835,1737821433357,-500.0,0.0001668,2]
[350385836,1737821433367,-500.0,0.0001668,2]
[350385837,1737821433376,-500.0,0.0001668,2]
[350385838,1737821433386,-500.0,0.0001668,2]
[350385839,1737821433396,-500.0,0.0001668,2]
[350385840,1737821433406,-500.0,0.0001668,2]
[350385841,1737821433416,-500.0,0.0001668,2]
[350385842,1737821433425,-500.0,0.0001668,2]
[350385843,1737821433435,-500.0,0.0001668,2]
[350385844,1737821433444,-500.0,0.0001668,2]
[350385845,1737821433453,-500.0,0.0001668,2]
[350385846,1737821433463,-309.91716349,0.0001668,2]
[350385847,1737821433473,-500.0,0.0001668,2]
[350385848,1737821433483,-500.0,0.0001668,2]
[350385849,1737821433493,-500.0,0.0001668,2]
[350385850,1737821433502,-500.0,0.0001668,2]
[350385851,1737821433512,-500.0,0.0001668,2]
[350385852,1737821433522,-500.0,0.0001668,2]
[350385853,1737821433531,-500.0,0.0001668,2]
[350385854,1737821433541,-500.0,0.0001668,2]
[350385855,1737821433550,-500.0,0.0001668,2]
[350385856,1737821433560,-500.0,0.0001668,2]
[350385857,1737821433569,-500.0,0.0001668,2]
[350385858,1737821433579,-500.0,0.0001668,2]
[350385859,1737821433590,-500.0,0.0001668,2]
[350385860,1737821433602,-642.0,0.0001668,2]
[350385861,1737821433611,-337.07176363,0.0001668,2]
[350385862,1737821433621,-500.0,0.0001668,2]
[350385863,1737821433632,-500.0,0.0001668,2]
[350385864,1737821433643,-540.58622942,0.0001668,2]
[350385865,1737821433652,-500.0,0.0001668,2]
[350385866,1737821433662,-500.0,0.0001668,2]
[350385867,1737821433672,-500.0,0.0001668,2]
[350385868,1737821433682,-500.0200012,0.0001668,2]
[350385869,1737821433692,-500.0,0.0001671,2]
[350385870,1737821433702,-500.0,0.0001671,2]
[350385871,1737821433712,-500.0,0.0001671,2]
[350385872,1737821433723,-500.0,0.0001671,2]
[350385873,1737821433733,-500.0,0.0001671,2]
[350385874,1737821433743,-500.0,0.0001671,2]
[350385875,1737821433752,-500.0,0.0001671,2]
[350385876,1737821433763,-500.0,0.0001671,2]
[350385877,1737821433773,-500.0,0.0001671,2]
[350385878,1737821433783,-526.32024082,0.0001671,2]
[350385879,1737821433793,-500.0,0.0001671,2]
[350385880,1737821433803,-500.0,0.0001671,2]
[350385881,1737821433813,-243.65772549,0.0001671,2]
[350385882,1737821433823,-500.0,0.0001671,2]
[350385883,1737821433832,-300.0,0.0001671,2]
[350385884,1737821433842,-500.0,0.0001671,2]
[350385885,1737821433852,-500.0,0.0001671,2]
[350385886,1737821433862,-500.0,0.0001671,2]
[350385887,1737821433872,-500.0,0.0001671,2]
[350385888,1737821433883,-500.0,0.0001671,2]
[350385889,1737821433893,-500.0,0.0001671,2]
[350385890,1737821433903,-500.0,0.0001671,2]
[350385891,1737821433913,-500.0,0.0001671,2]
[350385892,1737821433922,-500.0,0.0001671,2]
[350385893,1737821433933,-509.73232581,0.0001671,2]
[350385894,1737821433943,-500.0,0.0001671,2]
[350385895,1737821433953,-494.0,0.0001671,2]
[350385896,1737821433963,-500.0,0.0001671,2]
[350385897,1737821433974,-314.26772388,0.0001671,2]
[350385898,1737821433985,-500.0,0.0001671,2]
[350385899,1737821433995,-500.0,0.0001671,2]
[350385900,1737821434005,-500.0,0.0001671,2]
[350385901,1737821434016,-500.0,0.0001671,2]
[350385902,1737821434025,-500.0,0.0001671,2]
[350385903,1737821434035,-448.38849519,0.0001671,2]
[350385904,1737821434045,-438.72967266,0.0001671,2]
[350385905,1737821434055,-194.17,0.00016712,2]
[350385906,1737821434065,-9261.6279773,0.00016713,2]
[350385907,1737821434083,-365.41440012,0.00016713,2]
[350385908,1737821434095,-449.00374955,0.00016713,2]
[350385909,1737821434106,-272.63792769,0.00016713,2]
[350385910,1737821434118,-1705.8,0.00016713,2]
[350385911,1737821434130,-5132.73448587,0.00016713,2]
[350385912,1737821434142,-2916.38803365,0.00016713,2]
[350385913,1737821434158,-876.5180073,0.00016713,2]
[350385916,1737821437660,-2919.87541852,0.00016713,2]
[350385917,1737821437671,-1000.0,0.00016742,2]
[350385918,1737821437683,-4128.47727111,0.00016747,2]
[350385919,1737821437693,-500.0,0.00016817,2]
[350385920,1737821437707,-259.24,0.00016817,2]
[350385921,1737821437716,-500.0,0.00016847,2]
[350385922,1737821437727,-178.36,0.00016869,2]
[350385923,1737821437736,-1500.0,0.00016949,2]
[350385924,1737821437746,-600.0,0.00017,2]
[350385925,1737821437755,-8102.67,0.00017208,2]
[350385926,1737821437766,-250.0,0.00017412,2]
[350385927,1737821437775,-2500.0,0.0001755,2]
[350385928,1737821437785,-1547.03,0.00017754,2]
[350385929,1737821437795,-438.64,0.00017754,2]
[350385930,1737821437804,-773.64,0.00017754,2]
[350385931,1737821437814,-773.64,0.00017754,2]
[350385932,1737821437823,-877.28,0.00017754,2]
[350385933,1737821437832,-773.64,0.00017754,2]
[350385934,1737821437842,-527.75806773,0.000179,2]
[350385935,1737821437851,-153.0,0.00017922,2]
[350385936,1737821437860,-153.0,0.00017923,2]
[350385937,1737821437870,-153.0,0.00017923,2]
[350385938,1737821437880,-153.0,0.00017923,2]
[350385939,1737821437889,-153.0,0.00017923,2]
[350385940,1737821437899,-153.0,0.00017923,2]
[350385941,1737821437909,-153.0,0.00017923,2]
[350385942,1737821437918,-153.0,0.00017923,2]
[350385943,1737821437927,-153.0,0.00017923,2]
[350385944,1737821437938,-153.0,0.00017923,2]
[350385945,1737821437948,-153.0,0.00017923,2]
[350385946,1737821437957,-153.0,0.00017923,2]
[350385947,1737821437966,-153.0,0.00017923,2]
[350385948,1737821437976,-153.0,0.00017923,2]
[350385949,1737821437985,-153.0,0.00017923,2]
[350385950,1737821437995,-1327.365,0.00018015,2]
[350385951,1737821438004,-1000.0,0.00018017,2]
[350385952,1737821438014,-527.75806767,0.00018038,2]
[350385953,1737821438023,-240.0,0.00018082,2]
[350385954,1737821438033,-500.0,0.00018164,2]
[350385955,1737821438042,-527.75806767,0.00018176,2]
[350385956,1737821438052,-5000.0,0.00018223,2]
[350385957,1737821438062,-3906.0069,0.00018223,2]
[350385958,1737821438072,-287.89,0.00018313,2]
[350385959,1737821438082,-527.75806767,0.00018314,2]
[350385960,1737821438091,-500.0,0.00018322,2]
[350385961,1737821438101,-500.0,0.00018322,2]
[350385962,1737821438110,-500.0,0.00018322,2]
[350385963,1737821438120,-500.0,0.00018322,2]
[350385964,1737821438129,-57.02072062,0.00018322,2]
[350385965,1737821438141,-442.97927938,0.00018322,2]
[350385966,1737821438150,-500.0,0.00018322,2]
[350385967,1737821438159,-500.0,0.00018322,2]
[350385968,1737821438169,-500.0,0.00018322,2]
[350385969,1737821438178,-477.16326351,0.00018322,2]
[350385970,1737821438190,-22.83673649,0.00018322,2]
[350385971,1737821438200,-407.82423197,0.00018322,2]
[350385972,1737821438262,-92.17576803,0.00018322,2]
[350385973,1737821438272,-500.0,0.00018322,2]
[350385974,1737821438282,-500.0,0.00018322,2]
[350385975,1737821438292,-500.0,0.00018322,2]
[350385976,1737821438301,-500.0,0.00018322,2]
[350385977,1737821438310,-500.0,0.00018322,2]
[350385978,1737821438320,-500.0,0.00018322,2]
[350385979,1737821438330,-500.0,0.00018322,2]
[350385980,1737821438339,-500.0,0.00018322,2]
[350385981,1737821438348,-500.0,0.00018322,2]
[350385982,1737821438358,-500.0,0.00018322,2]
[350385983,1737821438367,-500.0,0.00018322,2]
[350385984,1737821438377,-500.0,0.00018322,2]
[350385985,1737821438386,-500.0,0.00018322,2]
[350385986,1737821438396,-500.0,0.00018322,2]
[350385987,1737821438405,-500.0,0.00018322,2]
[350385988,1737821438415,-500.0,0.00018322,2]
[350385989,1737821438426,-500.0,0.00018322,2]
[350385990,1737821438438,-500.0,0.00018322,2]
[350385991,1737821438448,-500.0,0.00018322,2]
[350385992,1737821438457,-500.0,0.00018322,2]
[350385993,1737821438467,-500.0,0.00018322,2]
[350385994,1737821438475,-500.0,0.00018322,2]
[350385995,1737821438489,-500.0,0.00018322,2]
[350385996,1737821438499,-500.0,0.00018322,2]
[350385997,1737821438509,-500.0,0.00018322,2]
[350385998,1737821438518,-500.0,0.00018322,2]
[350385999,1737821438527,-500.0,0.00018322,2]
[350386000,1737821438536,-541.59,0.00018322,2]
[350386001,1737821438545,-500.0,0.00018322,2]
[350386002,1737821438555,-500.0,0.00018322,2]
[350386003,1737821438565,-500.0,0.00018322,2]
[350386004,1737821438574,-500.0,0.00018322,2]
[350386005,1737821438584,-534.17,0.00018322,2]
[350386006,1737821438594,-636.83,0.00018322,2]
[350386007,1737821438606,-500.0,0.00018322,2]
[350386008,1737821438615,-500.0,0.00018322,2]
[350386009,1737821438623,-500.0,0.00018322,2]
[350386010,1737821438633,-557.83,0.00018322,2]
[350386011,1737821438643,-500.0,0.00018322,2]
[350386012,1737821438652,-500.0,0.00018322,2]
[350386013,1737821438662,-500.0,0.00018323,2]
[350386014,1737821438671,-500.0,0.00018323,2]
[350386015,1737821438681,-500.0,0.00018323,2]
[350386016,1737821438691,-500.0,0.00018323,2]
[350386017,1737821438700,-500.0,0.00018323,2]
[350386018,1737821438710,-552.70145311,0.00018323,2]
[350386019,1737821438719,-500.0,0.00018323,2]
[350386020,1737821438729,-500.0,0.00018323,2]
[350386021,1737821438739,-500.0,0.00018323,2]
[350386022,1737821438748,-500.0,0.00018323,2]
[350386023,1737821438757,-500.0,0.00018323,2]
[350386024,1737821438767,-500.0,0.00018323,2]
[350386025,1737821438776,-500.0,0.00018323,2]
[350386026,1737821438786,-500.0,0.00018323,2]
[350386027,1737821438795,-500.0,0.00018323,2]
[350386028,1737821438804,-500.0,0.00018323,2]
[350386029,1737821438813,-500.0,0.00018323,2]
[350386030,1737821438822,-500.0,0.00018323,2]
[350386031,1737821438832,-500.0,0.00018323,2]
[350386032,1737821438841,-500.0,0.00018323,2]
[350386033,1737821438850,-500.0,0.00018323,2]
[350386034,1737821438859,-500.0,0.00018323,2]
[350386035,1737821438868,-500.0,0.00018323,2]
[350386036,1737821438878,-500.0,0.00018323,2]